Workbook

Sheet Лист1
B1: Акционерное общество "Департамент продовольствия и социального питания г. Казани"
B2: МЕНЮ
B3: Младшие ЗАГОТОВОЧНЫЕ Октябрь 2022 г (б/питание)
B4: с 10 по 18 октября 2022 г. с 24 по 29 октября 2022 г.
B5: № рец. | C5: Наименование блюд | G5: Выход | H5: Цена | I5: Белки, г | J5: Жиры, г | K5: Углеводы, г | M5: Калорийность, ккал
B6: 1 НЕДЕЛЯ
B7: Понедельник 1 неделя
B8: №23/2015г,Дели | C8: САЛАТ ИЗ СВЕЖИХ ПОМИДОРОВ 60 г (с луком) | G8: 60 | I8: 0.668 | J8: 3.710 | K8: 2.773 | M8: 48
B9: ТТК № 102 от 1.08.2019 г | C9: БИФШТЕКС РУБЛЕНЫЙ ПО-ДОМАШНЕМУ 80 г | G9: 80 | I9: 10.040 | J9: 5.840 | K9: 7.470 | M9: 123
B10: № 587 сбор.2004г | C10: СОУС ТОМАТНЫЙ 10 г | G10: 10 | I10: 0.105 | J10: 0.515 | K10: 0.665 | M10: 8
B11: №309/2015г,Дели | C11: МАКАРОННЫЕ ИЗДЕЛИЯ ОТВАРНЫЕ 150 г | G11: 150 | I11: 5.602 | J11: 5.068 | K11: 35.906 | M11: 212
B12: ТТК от 2021г | C12: ЧАЙ С САХАРОМ 200/8 г | G12: 200/8 | I12: 0.021 | K12: 10.170 | M12: 41
B13: ТТК от 2021г | C13: ПЕЧЕНЬЕ СДОБНОЕ АМЕРИКАНЕР С КУНЖУТОМ 15 г КП | G13: 15 | I13: 1.210 | J13: 3.620 | K13: 10.250 | M13: 78
C14: ХЛЕБ РЖАНО - ПШЕНИЧНЫЙ 25 г | G14: 25 | I14: 1.250 | J14: 0.250 | K14: 11.250 | M14: 55
B15: Итого: | H15: 62.10 | I15: =SUM(I8:I14) -> 18.896 | J15: =SUM(J8:J14) -> 19.003 | K15: =SUM(K8:K14) -> 78.484 | M15: =SUM(M8:M14) -> 565
B16: Вторник 1 неделя
B17: № 338 Дели 2015 г | C17: ПЛОДЫ И ЯГОДЫ СВЕЖИЕ (ЯБЛОКИ) 120 г | G17: 120 | I17: 0.480 | J17: 0.480 | K17: 11.760 | M17: 56
B18: ТТК (Акт 19.09.2018 г) | C18: БЛИНЧИКИ СО СГУЩЕННЫМ МОЛОКОМ 1 шт/45/10 г ( 45 г п/ф комбинат 19.09.2018г) | G18: 45/10 | I18: 2.190 | J18: 2.520 | K18: 13.500 | M18: 85
B19: №45/2015г,Дели | C19: САЛАТ ИЗ БЕЛОКОЧАННОЙ КАПУСТЫ 60 г (капуста,морковь,сахар,м/раст) | G19: 60 | I19: 0.931 | J19: 3.051 | K19: 5.645 | M19: 54
B20: ТТК 2021г июль | C20: ЖАРКОЕ ИЗ ПТИЦЫ (грудки куриные) 40/120 г (картоф.очищ.) Акт 2021г | G20: 40/120 | I20: 11.770 | J20: 12.050 | K20: 22.530 | M20: 246
B21: ТТК 2021 г | C21: КОМПОТ ИЗ ЗАМОРОЖЕННОЙ КОМПОТНОЙ СМЕСИ 200 г | G21: 200 | I21: 0.135 | J21: 0.023 | K21: 11.150 | M21: 46
C22: ХЛЕБ РЖАНО - ПШЕНИЧНЫЙ 25 г | G22: 25 | I22: 1.250 | J22: 0.250 | K22: 11.250 | M22: 55
B23: Итого: | H23: 62.10 | I23: =SUM(I17:I22) -> 16.756 | J23: =SUM(J17:J22) -> 18.374 | K23: =SUM(K17:K22) -> 75.835 | M23: =SUM(M17:M22) -> 542
B24: Среда 1 неделя
B25: № 71/2015 г Дели | C25: ОВОЩИ НАТУРАЛЬНЫЕ СВЕЖИЕ (ОГУРЦЫ) 60 г | G25: 60 | I25: 0.420 | J25: 0.060 | K25: 1.140 | M25: 7
B26: ТТК 2021г июль | C26: ГУЛЯШ ИЗ ФИЛЕ ГРУДОК ИНДЕЙКИ 45/45 г | G26: 45/45 | I26: 9.035 | J26: 10.200 | K26: 1.893 | M26: 135
B27: №302/2015г,Дели | C27: КАША ГРЕЧНЕВАЯ РАССЫПЧАТАЯ 150 г | G27: 150 | I27: 6.622 | J27: 5.399 | K27: 41.875 | M27: 242
B28: № 701 Сбор. рецеп. 2004 г | C28: НАПИТОК ЯБЛОЧНЫЙ 200 г | G28: 200 | I28: 0.100 | J28: 0.100 | K28: 26.402 | M28: 107
C29: ХЛЕБ РЖАНО - ПШЕНИЧНЫЙ 20 г | G29: 20 | I29: 1.000 | J29: 0.200 | K29: 9.000 | M29: 44
C30: ХЛЕБ ПШЕНИЧНЫЙ 15 г | G30: 15 | I30: 1.140 | J30: 0.120 | K30: 7.380 | M30: 35
B31: Итого: | H31: 62.10 | I31: =SUM(I25:I30) -> 18.317 | J31: =SUM(J25:J30) -> 16.079 | K31: =SUM(K25:K30) -> 87.69 | M31: =SUM(M25:M30) -> 570
B32: Четверг 1 неделя
B33: №52/2015г,Дели | C33: САЛАТ ИЗ СВЕКЛЫ ОТВАРНОЙ (с маслом) 60 г | G33: 60 | I33: 0.855 | J33: 3.653 | K33: 5.016 | M33: 56
B34: ТТК 2021 г июль | C34: ПЛОВ С ГОВЯДИНОЙ 40/160 г Акт Комбинат (2022г) | G34: 40/160 | I34: 12.890 | J34: 15.030 | K34: 42.760 | M34: 360
B35: ТТК от 2021г | C35: ЧАЙ С САХАРОМ, ЛИМОНОМ 200/8/10 г | G35: 200/8/10 | I35: 0.020 | J35: 0.010 | K35: 7.990 | M35: 32
C36: ХЛЕБ РЖАНО - ПШЕНИЧНЫЙ 20 г | G36: 20 | I36: 1.000 | J36: 0.200 | K36: 9.000 | M36: 44
C37: ХЛЕБ ПШЕНИЧНЫЙ 15 г | G37: 15 | I37: 1.140 | J37: 0.120 | K37: 7.380 | M37: 35
B38: Итого: | H38: 62.10 | I38: =SUM(I33:I37) -> 15.905 | J38: =SUM(J33:J37) -> 19.01 | K38: =SUM(K33:K37) -> 72.146 | M38: =SUM(M33:M37) -> 527
B39: Пятница 1 неделя
B40: №53 Сбор.2013 Саратов | C40: САЛАТ ВИТАМИННЫЙ 60 г (капуста,морковь,яблоки,сахар,м/р) | G40: 60 | I40: 0.790 | J40: 3.101 | K40: 6.713 | M40: 59
B41: ТТК (Акт 19.09.2018 г) | C41: БЛИНЧИКИ СО СГУЩЕННЫМ МОЛОКОМ 1 шт/45/10 г ( 45 г п/ф комбинат 19.09.2018г) | G41: 45/10 | I41: 2.190 | J41: 2.520 | K41: 13.500 | M41: 85
B42: ТТК от 30.10.2019 г | C42: БИТОЧКИ РЫБНЫЕ ИЗ ФАРША МИНТАЯ С СОУСОМ ТОМАТНЫМ 65/25 г (из п/ф 74г Комбинат) | G42: 65/25 | I42: 9.250 | J42: 7.660 | K42: 2.050 | M42: 115
B43: №312/2015г,Дели | C43: ПЮРЕ КАРТОФЕЛЬНОЕ 150 г | G43: 150 | I43: 3.282 | J43: 4.657 | K43: 22.027 | M43: 146
B44: ттк от 10 01 2022г | C44: КОМПОТ ИЗ ЗАМОРОЖЕННОГО КРЫЖОВНИКА 200 г | G44: 200 | I44: 0.175 | J44: 0.005 | K44: 17.445 | M44: 71
C45: ХЛЕБ РЖАНО - ПШЕНИЧНЫЙ 20 г | G45: 20 | I45: 1.000 | J45: 0.200 | K45: 9.000 | M45: 44
C46: ХЛЕБ ПШЕНИЧНЫЙ 20 г | G46: 20 | I46: 1.520 | J46: 0.160 | K46: 9.840 | M46: 47
B47: Итого: | H47: 62.10 | I47: =SUM(I40:I46) -> 18.207 | J47: =SUM(J40:J46) -> 18.30 | K47: =SUM(K40:K46) -> 80.575 | M47: =SUM(M40:M46) -> 567
B48: Суббота 1 неделя
B49: № 71/2015 г Дели | C49: ОВОЩИ НАТУРАЛЬНЫЕ СВЕЖИЕ (ОГУРЦЫ) 60 г | G49: 60 | I49: 0.420 | J49: 0.060 | K49: 1.140 | M49: 7
B50: №243/2015г,Дели | C50: СОСИСКИ ОТВАРНЫЕ 100 г | G50: 100 | I50: 9.400 | J50: 11.000 | K50: 1.800 | M50: 144
B51: №309/2015г,Дели | C51: МАКАРОННЫЕ ИЗДЕЛИЯ ОТВАРНЫЕ 150 г | G51: 150 | I51: 5.602 | J51: 5.068 | K51: 35.906 | M51: 212
B52: ТТК от 2021г | C52: КОМПОТ ИЗ СВЕЖИХ ПЛОДОВ (ЯБЛОКИ) 200 г | G52: 200 | I52: 0.080 | J52: 0.080 | K52: 11.940 | M52: 49
C53: ХЛЕБ РЖАНО - ПШЕНИЧНЫЙ 20 г | G53: 20 | I53: 1.000 | J53: 0.200 | K53: 9.000 | M53: 44
C54: ХЛЕБ ПШЕНИЧНЫЙ 15 г | G54: 15 | I54: 1.140 | J54: 0.120 | K54: 7.380 | M54: 35
B55: Итого: | H55: 62.10 | I55: =SUM(I49:I54) -> 17.642 | J55: =SUM(J49:J54) -> 16.528 | K55: =SUM(K49:K54) -> 67.166 | M55: =SUM(M49:M54) -> 491
B57: Начальник производственного отдела | G57: Зав. производством | J57: Калькулятор

Sheet Лист2

Sheet Лист3
